bitfinex-derivatives/quotes_SOLF0:USTF0_20260311
["timestamp","ask_amount","ask_price","bid_price","bid_amount"]
[1773261347774,4.83777455,87.121,87.09,3.90838974]
[1773261348074,4.83777455,87.12,87.09,3.90838974]
[1773261348274,3.97709057,87.124,87.09,3.90838974]
[1773261348474,4.83983334,87.123,87.09,3.90838974]
[1773261348674,3.97709057,87.124,87.09,3.90838974]
[1773261348675,4.83983334,87.122,87.09,3.90838974]
[1773261348875,4.83983334,87.121,87.09,3.90838974]
[1773261349176,4.83983334,87.12,87.09,3.90838974]
[1773261349369,3.97709057,87.124,87.09,3.90838974]
[1773261349566,4.83977461,87.123,87.09,3.90838974]
[1773261349772,4.83977461,87.122,87.09,3.90838974]
[1773261350075,4.83977461,87.121,87.09,3.90838974]
[1773261350274,4.83977461,87.12,87.09,3.90838974]
[1773261350466,3.97709057,87.124,87.09,3.90838974]
[1773261350666,4.83988127,87.123,87.09,3.90838974]
[1773261350869,4.83988127,87.122,87.09,3.90838974]
[1773261351070,4.83988127,87.121,87.09,3.90838974]
[1773261351276,4.83988127,87.12,87.09,3.90838974]
[1773261351476,3.97709057,87.124,87.09,3.90838974]
[1773261351671,4.83975665,87.123,87.09,3.90838974]
[1773261351867,4.83975665,87.122,87.09,3.90838974]
[1773261352068,4.83975665,87.121,87.09,3.90838974]
[1773261352378,4.83975665,87.12,87.09,3.90838974]
[1773261352678,3.66390883,87.118,87.071,10.334]
[1773261352879,3.66390883,87.116,87.071,10.334]
[1773261353072,3.66390883,87.114,87.071,10.334]
[1773261353276,3.66390883,87.112,87.071,10.334]
[1773261353476,13.99390883,87.107,87.071,10.334]
[1773261353679,3.66390883,87.106,87.071,3.90195215]
[1773261356385,3.66390883,87.106,87.073,14.23595215]
[1773261360477,3.66390883,87.106,87.074,3.90195215]
[1773261361488,3.66390883,87.106,87.076,10.334]
[1773261367189,10.329,87.114,87.079,3.90195215]
[1773261368393,14.46,87.115,87.08,10.333]
[1773261368592,3.66390883,87.116,87.08,14.23495215]
[1773261369388,2.45915029,87.14,87.089,3.90195215]
[1773261369594,3.66390883,87.147,87.101,3.90195215]
[1773261370089,3.66390883,87.147,87.064,21.42784856]
[1773261370090,3.66390883,87.147,87.103,3.90195215]
[1773261371498,3.66390883,87.147,87.112,14.23095215]
[1773261372690,4.8002944,87.155,87.117,3.90195215]
[1773261372898,19.2602944,87.179,87.131,3.90195215]
[1773261373094,3.66390883,87.177,87.131,3.90195215]
[1773261373498,3.66390883,87.176,87.131,3.90195215]
[1773261373999,3.66390883,87.175,87.131,3.90195215]
[1773261375398,3.66390883,87.171,87.131,3.90195215]
[1773261384198,3.92332487,87.168,87.131,3.90195215]
[1773261384808,3.92332487,87.168,87.134,3.92321026]
[1773261385806,3.92332487,87.178,87.136,3.92321026]
[1773261386707,3.92332487,87.178,87.138,3.92321026]
[1773261388712,3.92332487,87.178,87.141,3.92321026]
[1773261390910,3.92332487,87.178,87.143,3.92321026]
[1773261392108,3.92332487,87.198,87.151,3.92321026]
[1773261392411,3.92332487,87.196,87.151,3.92321026]
[1773261393412,14.24332487,87.196,87.154,3.92321026]
[1773261393812,3.92332487,87.195,87.154,3.92321026]
[1773261395413,3.92332487,87.192,87.155,14.24721026]
[1773261396612,3.92332487,87.196,87.158,3.92321026]
[1773261398513,3.92332487,87.196,87.16,3.92321026]
[1773261399012,14.46,87.197,87.169,3.92321026]
[1773261399216,3.92332487,87.204,87.169,3.92321026]
[1773261399816,3.92332487,87.215,87.181,3.92321026]
[1773261400410,3.92332487,87.215,87.184,3.69164125]
[1773261402618,3.83854826,87.213,87.176,10.322]
[1773261403522,3.83854826,87.213,87.177,3.69164125]
[1773261406517,3.83854826,87.213,87.18,3.69164125]
[1773261411325,10.317,87.216,87.183,3.96934593]
[1773261412426,14.28296675,87.216,87.183,3.96934593]
[1773261413123,3.96596675,87.215,87.183,3.96934593]
[1773261415726,3.96596675,87.206,87.169,3.96934593]
[1773261415926,2.45691157,87.2,87.159,3.96934593]
[1773261416232,2.45691157,87.2,87.14,2.45691157]
[1773261416233,3.96596675,87.199,87.141,3.96934593]
[1773261416529,3.96596675,87.199,87.116,20.658]
[1773261416530,3.96596675,87.199,87.154,3.96934593]
[1773261417321,3.96596675,87.199,87.163,3.96934593]
[1773261418929,10.319,87.198,87.163,3.96934593]
[1773261419522,3.96596675,87.197,87.153,3.96934593]
[1773261420431,10.32,87.193,87.155,3.96934593]
[1773261421334,3.96596675,87.197,87.157,3.96934593]
[1773261422231,3.96596675,87.192,87.151,10.325]
[1773261422425,3.96596675,87.192,87.147,3.96934593]
[1773261423534,3.96596675,87.184,87.147,3.96934593]
[1773261424631,3.96596675,87.198,87.151,3.96934593]
[1773261426337,3.96596675,87.198,87.164,10.323]
[1773261430233,3.96596675,87.198,87.161,3.96934593]
[1773261430440,3.96596675,87.196,87.141,3.96934593]
[1773261432339,14.28596675,87.196,87.153,10.325]
[1773261432531,3.96596675,87.195,87.153,10.325]
[1773261433343,14.28596675,87.192,87.153,10.325]
[1773261433738,3.96596675,87.191,87.153,10.325]
[1773261434338,3.96596675,87.191,87.158,3.96934593]
[1773261435542,4.88164726,87.19,87.158,3.96934593]
[1773261435741,3.96596675,87.191,87.158,3.96934593]
[1773261435941,4.89012276,87.19,87.158,3.96934593]
[1773261436141,3.96596675,87.191,87.158,3.96934593]
[1773261436339,4.89206271,87.19,87.158,3.96934593]
[1773261436641,4.89206271,87.189,87.158,3.96934593]
[1773261436838,3.96596675,87.191,87.158,3.96934593]
[1773261437140,4.89207832,87.19,87.158,3.96934593]
[1773261437343,4.89207832,87.189,87.158,3.96934593]
[1773261437543,3.96596675,87.191,87.159,10.324]
[1773261437745,4.89194564,87.19,87.159,10.324]
[1773261437938,4.89194564,87.189,87.159,10.324]
[1773261438142,3.96596675,87.191,87.16,3.96934593]
[1773261438339,4.8917167,87.19,87.16,3.96934593]
[1773261438540,4.8917167,87.189,87.16,3.96934593]
[1773261438836,3.96596675,87.191,87.16,3.96934593]
[1773261439036,4.89171545,87.19,87.16,3.96934593]
[1773261439241,4.89171545,87.189,87.16,3.96934593]
[1773261439443,3.96596675,87.191,87.16,3.96934593]
[1773261439642,4.89164795,87.19,87.16,3.96934593]
[1773261439840,4.89164795,87.189,87.16,3.96934593]
[1773261440049,3.96596675,87.191,87.16,3.96934593]
[1773261440347,4.89283646,87.19,87.16,3.96934593]
[1773261440548,4.89283646,87.189,87.16,3.96934593]
[1773261440747,3.96596675,87.191,87.16,3.96934593]
[1773261440949,4.89272935,87.19,87.16,3.96934593]
[1773261441146,3.96596675,87.191,87.16,3.96934593]
[1773261441147,4.89272935,87.189,87.16,3.96934593]
[1773261441347,3.96596675,87.191,87.16,3.96934593]
[1773261441549,4.89265971,87.19,87.16,3.96934593]
[1773261441747,4.89265971,87.189,87.16,3.96934593]
[1773261442054,4.89265971,87.188,87.16,3.96934593]
[1773261442353,3.84944658,87.189,87.159,10.324]
[1773261442543,8.74177369,87.188,87.153,10.325]
[1773261442748,3.84944658,87.188,87.153,10.325]
[1773261443256,3.84944658,87.186,87.131,3.77299359]
[1773261443449,3.84944658,87.179,87.131,3.77299359]
[1773261443753,8.74138251,87.178,87.131,3.77299359]
[1773261443958,4.89193593,87.177,87.131,3.77299359]
[1773261444256,3.84944658,87.178,87.131,3.77299359]
[1773261444451,3.84944658,87.178,87.139,10.326]
[1773261444652,3.84944658,87.177,87.139,10.326]
[1773261447157,3.84944658,87.177,87.13,2.45640182]
[1773261447158,3.84944658,87.174,87.132,3.77299359]
[1773261448463,14.17244658,87.17,87.132,14.09999359]
[1773261449352,3.84944658,87.169,87.132,14.09999359]
[1773261449563,3.84944658,87.176,87.135,3.77299359]
[1773261449760,4.88981528,87.182,87.14,2.45640182]
[1773261449958,4.88981528,87.183,87.141,3.77299359]
[1773261450163,3.84944658,87.18,87.141,3.77299359]
[1773261451364,3.84944658,87.178,87.141,14.09899359]
[1773261452357,3.84944658,87.178,87.147,10.325]
[1773261459561,8.73926186,87.178,87.147,10.325]
[1773261459761,3.84944658,87.178,87.147,10.325]
[1773261459965,3.84944658,87.176,87.141,3.77299359]
[1773261460165,3.84944658,87.176,87.139,10.326]
[1773261460362,3.79887631,87.174,87.131,3.64854234]
[1773261460667,3.79887631,87.172,87.131,3.64854234]
[1773261460869,3.79887631,87.17,87.131,3.64854234]
[1773261461062,3.79887631,87.168,87.131,3.64854234]
[1773261461469,3.79887631,87.167,87.131,3.64854234]
[1773261462468,14.12187631,87.166,87.131,3.64854234]
[1773261463765,14.12187631,87.166,87.131,13.97554234]
[1773261464070,3.79887631,87.178,87.132,3.64854234]
[1773261464269,8.66329852,87.177,87.132,3.64854234]
[1773261464472,4.86442221,87.176,87.132,3.64854234]
[1773261464670,10.322,87.174,87.138,13.97454234]
[1773261464866,4.86442221,87.173,87.138,13.97454234]
[1773261465169,4.86442221,87.172,87.138,13.97454234]
[1773261465370,4.86442221,87.171,87.138,13.97454234]
[1773261465569,4.86442221,87.17,87.138,13.97454234]
[1773261465770,4.86442221,87.173,87.138,13.97454234]
[1773261465970,4.86442221,87.172,87.138,13.97454234]
[1773261466171,4.86442221,87.171,87.139,3.64854234]
[1773261466372,4.86442221,87.17,87.139,3.64854234]
[1773261466672,10.322,87.174,87.139,3.64854234]
[1773261467072,3.79887631,87.172,87.128,3.64854234]
[1773261468372,3.79887631,87.172,87.136,3.64854234]
[1773261471376,3.79887631,87.172,87.137,14.23103474]
[1773261472574,3.79887631,87.172,87.138,3.90403474]
[1773261475278,4.86576888,87.171,87.138,3.90403474]
[1773261475577,3.79887631,87.172,87.138,3.90403474]
[1773261475778,4.86577934,87.171,87.138,3.90403474]
[1773261476081,3.79887631,87.172,87.138,3.90403474]
[1773261476280,4.86577934,87.171,87.138,3.90403474]
[1773261476574,3.79887631,87.172,87.138,3.90403474]
[1773261476770,4.86616729,87.171,87.138,3.90403474]
[1773261476976,3.79887631,87.172,87.138,3.90403474]
[1773261477176,4.86616729,87.171,87.138,3.90403474]
[1773261477481,4.86616729,87.17,87.138,3.90403474]
[1773261477779,3.79887631,87.172,87.138,3.90403474]
[1773261477981,4.86922594,87.171,87.141,14.23003474]
[1773261478280,4.86922594,87.17,87.142,3.90403474]
[1773261478480,3.79887631,87.172,87.142,3.90403474]
[1773261478682,4.86974261,87.171,87.142,3.90403474]
[1773261478881,3.79887631,87.172,87.142,3.90403474]
[1773261478882,4.86974261,87.17,87.142,3.90403474]
[1773261479084,3.79887631,87.172,87.142,3.90403474]
[1773261479380,4.86974069,87.171,87.142,3.90403474]
[1773261479581,4.86974069,87.17,87.142,3.90403474]
[1773261479779,14.46,87.179,87.133,14.23103474]
[1773261479780,3.8413314,87.168,87.133,14.23103474]
[1773261479982,3.8413314,87.166,87.121,3.90403474]
[1773261480185,3.8413314,87.164,87.121,3.90403474]
[1773261480387,3.8413314,87.162,87.121,3.90403474]
[1773261480685,3.8413314,87.16,87.121,3.90403474]
[1773261480884,8.71119905,87.159,87.121,3.90403474]
[1773261481187,3.8413314,87.159,87.121,3.90403474]
[1773261481378,3.8413314,87.159,87.123,3.90403474]
[1773261481685,3.8413314,87.178,87.131,3.90403474]
[1773261481879,4.87056723,87.177,87.131,3.90403474]
[1773261482080,3.8413314,87.178,87.131,3.90403474]
[1773261482081,4.87056723,87.176,87.131,3.90403474]
[1773261482280,4.87056723,87.175,87.131,3.90403474]
[1773261482586,4.87056723,87.174,87.131,3.90403474]
[1773261482883,4.87056723,87.173,87.131,3.90403474]
[1773261483184,4.87056723,87.172,87.131,3.90403474]
[1773261483386,4.87056723,87.171,87.141,10.326]
[1773261483684,4.87056723,87.17,87.141,10.326]
[1773261483880,4.87056723,87.169,87.141,10.326]
[1773261484081,3.8413314,87.178,87.141,10.326]
[1773261484286,3.8413314,87.176,87.141,10.326]
[1773261484482,3.8413314,87.174,87.141,10.326]
[1773261484783,4.87161966,87.173,87.141,10.326]
[1773261484985,4.87161966,87.172,87.142,3.90403474]
[1773261485188,4.87161966,87.171,87.142,3.90403474]
[1773261485386,4.87161966,87.17,87.142,3.90403474]
[1773261485587,4.87161966,87.169,87.142,3.90403474]
[1773261485786,4.87161966,87.168,87.142,3.90403474]
[1773261485990,3.8413314,87.174,87.142,3.90403474]
[1773261486190,4.84095626,87.173,87.142,3.90403474]
[1773261486390,4.84095626,87.172,87.142,3.90403474]
[1773261486692,4.84095626,87.171,87.142,3.90403474]
[1773261486990,4.84095626,87.17,87.142,3.90403474]
[1773261487189,4.84095626,87.169,87.142,3.90403474]
[1773261487390,4.84095626,87.168,87.142,3.90403474]
[1773261487592,3.8413314,87.174,87.142,3.90403474]
[1773261487793,4.84259815,87.173,87.142,3.90403474]
[1773261487988,4.84259815,87.172,87.142,3.90403474]
[1773261488292,4.84259815,87.171,87.142,3.90403474]
[1773261488495,4.84259815,87.17,87.142,3.90403474]
[1773261488695,4.84259815,87.169,87.142,3.90403474]
[1773261488897,4.84259815,87.168,87.142,3.90403474]
[1773261489192,4.84259815,87.167,87.142,3.90403474]
[1773261489393,3.8413314,87.174,87.142,3.90403474]
[1773261489589,4.8434279,87.173,87.142,3.90403474]
[1773261489793,4.8434279,87.172,87.142,3.90403474]
[1773261489994,4.8434279,87.171,87.142,3.90403474]
[1773261490194,3.8413314,87.174,87.142,3.90403474]
[1773261490493,4.84342452,87.17,87.142,3.90403474]
[1773261490890,3.8413314,87.174,87.142,3.90403474]
[1773261491894,4.84344244,87.173,87.142,3.90403474]
[1773261492197,4.84344244,87.172,87.142,3.90403474]
[1773261492396,4.84344244,87.171,87.142,3.90403474]
[1773261492597,4.84344244,87.17,87.142,3.90403474]
[1773261492792,4.84344244,87.169,87.142,3.90403474]
[1773261493096,3.8413314,87.167,87.119,3.90403474]
[1773261493296,3.8413314,87.165,87.119,3.90403474]
[1773261493498,3.8413314,87.163,87.119,3.90403474]
[1773261493692,3.8413314,87.161,87.119,3.90403474]
[1773261493897,3.8413314,87.159,87.119,3.90403474]
[1773261494098,4.84344244,87.158,87.119,3.90403474]
[1773261494288,3.8413314,87.159,87.119,3.90403474]
[1773261494490,4.84152184,87.158,87.125,10.328]
[1773261494690,3.8413314,87.159,87.125,10.328]
[1773261494894,4.84152372,87.158,87.125,10.328]
[1773261495092,3.8413314,87.159,87.125,10.328]
[1773261495301,4.84091221,87.158,87.125,10.328]
[1773261495501,3.8413314,87.159,87.125,10.328]
[1773261495701,4.84061207,87.158,87.125,10.328]
[1773261495902,3.8413314,87.159,87.125,10.328]
[1773261496203,4.84058634,87.158,87.125,10.328]
[1773261496402,3.8413314,87.159,87.125,10.328]
[1773261496603,4.84043455,87.158,87.125,10.328]
[1773261496803,3.8413314,87.159,87.125,10.328]
[1773261497004,4.84043466,87.158,87.125,10.328]
[1773261497205,3.8413314,87.159,87.125,10.328]
[1773261497504,4.84024176,87.158,87.125,10.328]
[1773261497801,3.8413314,87.159,87.125,10.328]
[1773261498003,4.84032828,87.158,87.125,10.328]
[1773261498203,3.8413314,87.159,87.125,10.328]
[1773261498405,4.84021524,87.158,87.125,10.328]
[1773261498605,3.8413314,87.159,87.125,10.328]
[1773261498806,4.84067912,87.158,87.125,14.23203474]
[1773261499006,3.8413314,87.159,87.125,14.23203474]
[1773261499206,4.84068405,87.158,87.125,14.23203474]
[1773261499506,3.8413314,87.159,87.125,14.23203474]
[1773261499706,4.84061489,87.158,87.125,14.23203474]
[1773261499999,3.8413314,87.159,87.125,14.23203474]
[1773261500205,4.84061406,87.158,87.126,3.87951643]
[1773261500406,3.8413314,87.159,87.126,3.87951643]
[1773261500605,4.84013462,87.158,87.126,3.87951643]
[1773261500807,3.8413314,87.159,87.126,3.87951643]
[1773261501109,4.84013462,87.158,87.126,3.87951643]
[1773261501408,3.8413314,87.159,87.126,3.87951643]
[1773261501709,14.46,87.179,87.103,21.42784856]
[1773261501710,3.86574036,87.157,87.103,21.42784856]
[1773261501906,3.86574036,87.157,87.059,34.46]
[1773261501907,3.86574036,87.129,87.074,3.87951643]
[1773261502207,3.86574036,87.129,87.084,3.87951643]
[1773261503108,8.70588686,87.128,87.088,3.87951643]
[1773261503311,3.86574036,87.128,87.088,3.87951643]
[1773261503510,3.86574036,87.128,87.08,2.45640182]
[1773261503511,14.46,87.132,87.091,3.87951643]
[1773261504511,14.46,87.132,87.095,3.87951643]
[1773261505310,2.45640182,87.13,87.095,3.87951643]
[1773261507607,2.45950363,87.13,87.095,3.87951643]
[1773261517025,3.86574036,87.129,87.095,3.87951643]
[1773261520231,3.86574036,87.129,87.096,10.331]
[1773261521530,3.86574036,87.129,87.096,14.37189916]
[1773261527732,3.86574036,87.129,87.097,4.04089916]
[1773261529931,2.45950363,87.12,87.082,3.99110079]
[1773261530138,3.94217574,87.109,87.058,3.99110079]
[1773261531329,3.94217574,87.109,87.074,3.99110079]
[1773261531528,3.94217574,87.127,87.074,3.99110079]
[1773261531731,3.94217574,87.127,87.08,2.45950363]
[1773261531931,3.94217574,87.127,87.081,3.99110079]
[1773261533031,3.94217574,87.127,87.07,2.45950363]
[1773261533032,3.94217574,87.127,87.094,14.32310079]
[1773261534342,3.94217574,87.119,87.085,3.99110079]
[1773261541645,10.328,87.126,87.087,3.99110079]
[1773261541845,4.98067238,87.125,87.087,3.99110079]
[1773261542147,4.98067238,87.124,87.087,3.99110079]
[1773261542343,4.98067238,87.123,87.087,3.99110079]
[1773261542548,4.98067238,87.122,87.087,3.99110079]
[1773261542743,3.94217574,87.128,87.087,3.99110079]
[1773261542949,4.98211679,87.127,87.087,3.99110079]
[1773261543152,4.98211679,87.126,87.098,3.99110079]
[1773261543346,3.94217574,87.128,87.098,3.99110079]
[1773261543750,4.98439255,87.127,87.098,3.99110079]
[1773261543952,8.92656829,87.126,87.098,3.99110079]
[1773261544251,4.98439255,87.125,87.098,3.99110079]
[1773261544548,3.94217574,87.126,87.098,3.99110079]
[1773261544549,4.98439255,87.124,87.098,3.99110079]
[1773261544751,3.94217574,87.126,87.098,3.99110079]
[1773261544945,4.98652002,87.125,87.098,3.99110079]
[1773261545145,4.98652002,87.124,87.098,3.99110079]
[1773261545348,4.98912232,87.123,87.098,3.99110079]
[1773261545546,4.98591851,87.122,87.098,3.99110079]
[1773261545753,3.94217574,87.126,87.098,3.99110079]
[1773261545946,4.98660881,87.125,87.098,3.99110079]
[1773261546153,3.94217574,87.126,87.098,3.99110079]
[1773261546154,4.98660881,87.124,87.098,3.99110079]
[1773261546352,4.98660881,87.123,87.098,3.99110079]
[1773261546552,4.98660881,87.122,87.098,3.99110079]
[1773261546755,4.98660881,87.121,87.098,3.99110079]
[1773261546950,3.94217574,87.126,87.098,3.99110079]
[1773261547247,4.95683149,87.125,87.098,3.99110079]
[1773261547449,4.95683149,87.124,87.098,3.99110079]
[1773261547647,4.95683149,87.123,87.098,3.99110079]
[1773261547848,4.95683149,87.122,87.098,3.99110079]
[1773261548144,4.95683149,87.121,87.098,3.99110079]
[1773261548348,3.94217574,87.126,87.098,3.99110079]
[1773261548546,4.95690519,87.125,87.098,3.99110079]
[1773261548745,4.95690519,87.124,87.098,3.99110079]
[1773261548952,4.95690519,87.123,87.098,3.99110079]
[1773261549153,4.95690519,87.122,87.098,3.99110079]
[1773261549354,4.95690519,87.121,87.098,3.99110079]
[1773261549559,3.94217574,87.126,87.098,3.99110079]
[1773261549757,4.95907187,87.125,87.098,3.99110079]
[1773261549957,4.95907187,87.124,87.098,3.99110079]
[1773261550160,4.95907187,87.123,87.094,10.332]
[1773261550360,4.95907187,87.122,87.094,10.332]
[1773261550561,4.95907187,87.121,87.094,10.332]
[1773261550763,4.95907187,87.12,87.094,10.332]
[1773261550958,3.94217574,87.126,87.094,10.332]
[1773261551157,8.90120628,87.125,87.094,10.332]
[1773261551362,4.95903054,87.124,87.094,10.332]
[1773261551664,3.94217574,87.125,87.094,10.332]
[1773261551665,4.95903054,87.123,87.094,10.332]
[1773261551865,4.95903054,87.122,87.094,10.332]
[1773261552069,3.94217574,87.125,87.094,10.332]
[1773261552566,4.96119621,87.124,87.094,10.332]
[1773261552759,3.94217574,87.125,87.094,10.332]
[1773261552962,4.96117848,87.124,87.094,10.332]
[1773261553166,4.96117848,87.123,87.094,10.332]
[1773261553365,4.96117848,87.122,87.094,10.332]
[1773261553568,4.96117848,87.121,87.094,10.332]
[1773261553766,4.96117848,87.12,87.094,10.332]
[1773261554065,3.94217574,87.125,87.094,10.332]
[1773261554261,4.96124918,87.124,87.094,10.332]
[1773261554557,4.96124918,87.123,87.094,10.332]
[1773261554861,4.96124918,87.122,87.094,10.332]
[1773261555061,4.96124918,87.121,87.094,10.332]
[1773261555360,4.96124918,87.12,87.094,10.332]
[1773261555556,3.94217574,87.125,87.094,10.332]
[1773261555867,8.90312956,87.124,87.094,10.332]
[1773261556064,4.96095382,87.123,87.094,10.332]
[1773261556265,4.96095382,87.122,87.094,10.332]
[1773261556466,4.96095382,87.121,87.094,10.332]
[1773261556663,3.94217574,87.119,87.088,3.99110079]
[1773261558171,4.9601054,87.118,87.088,3.99110079]
[1773261558370,4.9601054,87.117,87.088,3.99110079]
[1773261558568,4.9601054,87.116,87.088,3.99110079]
[1773261558871,4.9601054,87.115,87.088,3.99110079]
[1773261559067,3.94217574,87.119,87.088,3.99110079]
[1773261559262,4.96015334,87.118,87.088,3.99110079]
[1773261559466,4.96015334,87.117,87.088,3.99110079]
[1773261559666,4.96015334,87.116,87.088,3.99110079]
[1773261559872,4.96015334,87.115,87.088,3.99110079]
[1773261560062,3.94217574,87.119,87.088,3.99110079]
[1773261560371,4.96019622,87.118,87.088,3.99110079]
[1773261560567,4.96019622,87.117,87.088,3.99110079]
[1773261560760,4.96019622,87.116,87.088,3.99110079]
[1773261560961,4.96019622,87.115,87.088,3.99110079]
[1773261561272,3.94217574,87.119,87.088,3.99110079]
[1773261561471,3.75503618,87.117,87.088,3.99110079]
[1773261561671,4.96129372,87.116,87.088,3.99110079]
[1773261561971,4.96129372,87.115,87.088,3.99110079]
[1773261562271,3.75503618,87.117,87.088,3.99110079]
[1773261562471,4.96057267,87.116,87.088,3.99110079]
[1773261562769,4.96057267,87.115,87.088,3.99110079]
[1773261562970,3.75503618,87.117,87.088,3.99110079]
[1773261563165,4.96032821,87.116,87.088,3.99110079]
[1773261563361,4.96032821,87.115,87.088,3.99110079]
[1773261563563,3.75503618,87.117,87.088,3.99110079]
[1773261563765,4.96042295,87.116,87.088,3.99110079]
[1773261563964,4.96042295,87.115,87.088,3.99110079]
[1773261564170,3.75503618,87.117,87.088,3.99110079]
[1773261564370,4.96098251,87.116,87.088,3.99110079]
[1773261564571,4.96098251,87.115,87.088,3.99110079]
[1773261564771,3.75503618,87.117,87.088,3.99110079]
[1773261564964,4.96098251,87.116,87.088,3.99110079]
[1773261565166,4.96098251,87.115,87.088,3.99110079]
[1773261565364,3.75503618,87.117,87.087,10.332]
[1773261565566,3.75503618,87.115,87.081,10.333]
[1773261566665,3.75503618,87.129,87.087,3.92980373]
[1773261566866,3.75503618,87.127,87.087,3.92980373]
[1773261567072,4.96088845,87.126,87.087,3.92980373]
[1773261567266,4.96088845,87.125,87.087,3.92980373]
[1773261567475,4.96088845,87.124,87.087,3.92980373]
[1773261567675,4.96088845,87.123,87.087,3.92980373]
[1773261567872,14.46,87.139,87.102,3.92980373]
[1773261569475,14.46,87.139,87.111,10.33]
[1773261569870,14.46,87.139,87.112,3.92980373]
[1773261573482,3.75503618,87.147,87.112,3.92980373]
[1773261575282,3.75503618,87.147,87.114,3.92980373]
[1773261575883,3.75503618,87.147,87.1,2.45879916]
[1773261575884,14.46,87.148,87.118,3.92980373]
[1773261576384,3.75503618,87.156,87.123,3.92980373]
[1773261578387,3.75503618,87.156,87.125,3.92980373]
[1773261581194,3.75503618,87.156,87.127,3.86775582]
[1773261582393,3.75503618,87.156,87.128,10.328]
[1773261582686,3.75503618,87.156,87.128,14.19575582]
[1773261582892,3.75503618,87.156,87.129,3.86775582]
[1773261584195,4.97402727,87.166,87.129,3.86775582]
[1773261584394,3.9704922,87.164,87.129,3.86775582]
[1773261584592,3.9704922,87.163,87.129,3.86775582]
[1773261593602,16.91879916,87.17,87.087,14.46]
[1773261593603,3.90274393,87.149,87.091,3.76272016]
[1773261593995,3.90274393,87.149,87.112,10.329]
[1773261598806,3.90274393,87.139,87.104,10.33]
[1773261599006,3.90274393,87.138,87.074,3.76272016]
[1773261599308,3.90274393,87.137,87.074,3.76272016]
[1773261600406,3.90274393,87.148,87.101,3.76272016]
[1773261600607,3.90274393,87.159,87.111,3.76272016]
[1773261600912,14.46,87.168,87.111,3.76272016]
[1773261600913,3.90274393,87.149,87.112,3.76272016]
[1773261603410,3.90274393,87.149,87.114,10.329]
[1773261604513,3.90274393,87.147,87.114,10.329]
[1773261605305,3.90274393,87.147,87.112,3.76272016]
[1773261605511,3.90274393,87.139,87.105,3.76272016]
[1773261606211,5.01960459,87.138,87.105,3.76272016]
[1773261606411,3.90274393,87.139,87.105,3.76272016]
[1773261606412,5.01960459,87.137,87.105,3.76272016]
[1773261606607,3.90274393,87.139,87.105,3.76272016]
[1773261606808,5.01960459,87.138,87.105,3.76272016]
[1773261607009,5.01960459,87.137,87.105,3.76272016]
[1773261607211,5.02028776,87.136,87.105,3.76272016]
[1773261607411,3.90274393,87.139,87.105,14.09272016]
[1773261607610,8.92317895,87.138,87.105,14.09272016]
[1773261607812,5.02043502,87.137,87.105,14.09272016]
[1773261608013,3.90274393,87.138,87.105,14.09272016]
[1773261608315,5.02051941,87.137,87.105,14.09272016]
[1773261608514,5.02051941,87.136,87.105,14.09272016]
[1773261608719,3.90274393,87.129,87.08,3.76272016]
[1773261608910,3.90274393,87.127,87.08,3.76272016]
[1773261609111,3.90274393,87.125,87.08,3.76272016]
[1773261610517,3.90274393,87.125,87.089,10.332]
[1773261610718,3.90274393,87.125,87.089,14.09472016]
[1773261611519,2.45879916,87.13,87.097,3.76272016]
[1773261611819,5.02230644,87.129,87.097,3.76272016]
[1773261612012,5.02230644,87.128,87.097,3.76272016]
[1773261612319,5.02230644,87.127,87.097,3.76272016]
[1773261612613,3.90274393,87.134,87.097,3.76272016]
[1773261612817,3.90274393,87.132,87.097,3.76272016]
[1773261613016,3.90274393,87.13,87.097,3.76272016]
[1773261613718,5.02352864,87.129,87.097,3.76272016]
[1773261614021,3.90274393,87.13,87.097,3.76272016]
[1773261615023,5.02352891,87.129,87.097,3.76272016]
[1773261615223,5.02352891,87.128,87.097,3.76272016]
[1773261615421,5.02352891,87.127,87.097,3.76272016]
[1773261615622,3.90274393,87.13,87.097,3.76272016]
[1773261615921,5.02272696,87.129,87.097,3.76272016]
[1773261616121,5.02272696,87.128,87.097,3.76272016]
[1773261616321,5.02272696,87.127,87.097,3.76272016]
[1773261616625,3.90274393,87.13,87.097,3.76272016]
[1773261616825,5.02177597,87.129,87.097,3.76272016]
[1773261617022,5.02177597,87.128,87.097,3.76272016]
[1773261617325,3.90274393,87.13,87.097,3.76272016]
[1773261617625,5.02108092,87.129,87.097,3.76272016]
[1773261617924,5.02108092,87.128,87.097,3.76272016]
[1773261618120,3.90274393,87.13,87.097,3.76272016]
[1773261618326,5.02158807,87.129,87.097,3.76272016]
[1773261618526,5.02158807,87.128,87.097,3.76272016]
[1773261618727,5.02476956,87.127,87.097,3.76272016]
[1773261619026,5.02476956,87.126,87.097,3.76272016]
[1773261619217,3.90274393,87.13,87.097,3.76272016]